[Event "Championnat d'Europe Rapide"]
[Date "2024.12.08"]
[White "Papasimakopoulos, Alexandros"]
[Black "Aymerich Verdaguer, Eduard"]
[WhiteElo "2379"]
[BlackElo "2163"]
[Round "7.38"]
[Result "1-0"]
[TimeControl "900+10"]

1. Nf3 {[%emt 00:00:02] [%clk 00:15:17]} Nf6 {[%emt 00:00:09] [%clk 00:15:11]}
2. b3 {[%emt 00:00:02] [%clk 00:15:26]} g6 {[%emt 00:00:09] [%clk 00:15:12]} 3.
Bb2 {[%emt 00:00:01] [%clk 00:15:35]} Bg7 {[%emt 00:00:01] [%clk 00:15:20]} 4.
g3 {[%emt 00:00:01] [%clk 00:15:44]} d6 {[%emt 00:00:09] [%clk 00:15:22]} 5. d4
{[%emt 00:00:02] [%clk 00:15:53]} O-O {[%emt 00:00:07] [%clk 00:15:25]} 6. c4
{[%emt 00:00:07] [%clk 00:15:55]} Nfd7 {[%emt 00:01:32] [%clk 00:14:03]} 7. Bg2
{[%emt 00:00:08] [%clk 00:15:57]} Nc6 {[%emt 00:00:08] [%clk 00:14:05]} 8. O-O
{[%emt 00:00:08] [%clk 00:15:59]} e5 {[%emt 00:00:03] [%clk 00:14:12]} 9. dxe5
{[%emt 00:00:06] [%clk 00:16:03]} dxe5 {[%emt 00:00:30] [%clk 00:13:52]} 10.
Nfd2 {[%emt 00:01:02] [%clk 00:15:11]} a5 {[%emt 00:02:30] [%clk 00:11:33]} 11.
Nc3 {[%emt 00:00:03] [%clk 00:15:17]} Nd4 {[%emt 00:01:19] [%clk 00:10:24]} 12.
e3 {[%emt 00:00:20] [%clk 00:15:07]} Ne6 {[%emt 00:00:01] [%clk 00:10:33]} 13.
a3 {[%emt 00:00:32] [%clk 00:14:45]} Ndc5 {[%emt 00:01:24] [%clk 00:09:19]} 14.
Rb1 {[%emt 00:01:43] [%clk 00:13:11]} f5 {[%emt 00:02:50] [%clk 00:06:39]} 15.
Ba1 {[%emt 00:01:02] [%clk 00:12:19]} e4 {[%emt 00:00:22] [%clk 00:06:27]} 16.
Qc2 {[%emt 00:01:30] [%clk 00:10:59]} c6 {[%emt 00:00:14] [%clk 00:06:24]} 17.
Rfd1 {[%emt 00:00:24] [%clk 00:10:44]} Qg5 {[%emt 00:00:49] [%clk 00:05:44]} 18.
Ne2 {[%emt 00:00:32] [%clk 00:10:23]} Bxa1 {[%emt 00:00:15] [%clk 00:05:39]} 19.
Rxa1 {[%emt 00:00:02] [%clk 00:10:32]} Nd3 {[%emt 00:00:13] [%clk 00:05:36]} 20.
Qc3 {[%emt 00:00:49] [%clk 00:09:52]} c5 {[%emt 00:00:55] [%clk 00:04:52]} 21.
Nc1 {[%emt 00:00:30] [%clk 00:09:31]} Rd8 {[%emt 00:00:53] [%clk 00:04:09]} 22.
Bf1 {[%emt 00:01:19] [%clk 00:08:22]} Nxc1 {[%emt 00:00:12] [%clk 00:04:07]} 23.
Raxc1 {[%emt 00:00:02] [%clk 00:08:30]} Ra6 {[%emt 00:00:16] [%clk 00:04:02]}
24. Nb1 {[%emt 00:00:06] [%clk 00:08:33]} Rad6 {[%emt 00:01:29] [%clk 00:02:43]}
25. Rxd6 {[%emt 00:00:07] [%clk 00:08:36]} Rxd6 {[%emt 00:00:01] [%clk
00:02:52]} 26. Qxa5 {[%emt 00:00:07] [%clk 00:08:40]} Qh5 {[%clk 00:03:01]} 27.
Qe1 {[%emt 00:04:08] [%clk 00:04:41]} Ng5 {[%emt 00:00:20] [%clk 00:02:50]} 28.
Be2 {[%emt 00:00:01] [%clk 00:04:50]} Nf3+ {[%emt 00:00:32] [%clk 00:02:29]} 29.
Bxf3 {[%emt 00:00:01] [%clk 00:04:59]} exf3 {[%emt 00:00:01] [%clk 00:02:37]}
30. Qf1 {[%emt 00:00:05] [%clk 00:05:03]} g5 {[%emt 00:00:06] [%clk 00:02:42]}
31. Rd1 {[%emt 00:00:22] [%clk 00:04:51]} Rxd1 {[%emt 00:01:07] [%clk 00:01:45]}
32. Qxd1 {[%emt 00:00:02] [%clk 00:04:59]} Be6 {[%emt 00:00:07] [%clk 00:01:47]}
33. Qd8+ {[%emt 00:00:43] [%clk 00:04:26]} Kf7 {[%emt 00:00:17] [%clk 00:01:41]}
34. Qb8 {[%emt 00:00:15] [%clk 00:04:21]} f4 {[%emt 00:00:45] [%clk 00:01:07]}
35. exf4 {[%emt 00:00:46] [%clk 00:03:45]} Qg6 {[%emt 00:00:20] [%clk 00:00:56]}
36. Nd2 {[%emt 00:00:29] [%clk 00:03:27]} g4 {[%emt 00:00:29] [%clk 00:00:37]}
37. Qxb7+ {[%emt 00:00:06] [%clk 00:03:31]} Kg8 {[%emt 00:00:09] [%clk
00:00:38]} 38. Qb8+ {[%emt 00:00:08] [%clk 00:03:33]} Kf7 {[%emt 00:00:06] [%clk
00:00:41]} 39. Qc7+ {[%emt 00:00:03] [%clk 00:03:40]} Kg8 {[%clk 00:00:50]} 40.
Qb8+ {[%emt 00:00:16] [%clk 00:03:34]} Kf7 {[%emt 00:00:01] [%clk 00:00:58]} 41.
Qb7+ {[%emt 00:00:02] [%clk 00:03:43]} Kg8 {[%emt 00:00:10] [%clk 00:00:58]} 42.
Qe4 {[%emt 00:00:05] [%clk 00:03:47]} Bf5 {[%emt 00:00:04] [%clk 00:01:04]} 43.
Qd5+ {[%emt 00:00:02] [%clk 00:03:56]} Kg7 {[%emt 00:00:52] [%clk 00:00:22]} 44.
Qxc5 {[%emt 00:00:06] [%clk 00:04:00]} 1-0

[Site "Europe Echecs"]

[Event "Championnat d'Europe Rapide"]
[Date "2024.12.08"]
[White "Ciric, Pavle"]
[Black "Pacher, Milan"]
[WhiteElo "2346"]
[BlackElo "2310"]
[Round "7.39"]
[Result "1/2-1/2"]
[TimeControl "900+10"]

1. e4 {[%emt 00:04:15] [%clk 00:11:05]} e5 {[%emt 00:00:03] [%clk 00:15:16]} 2.
Nf3 {[%emt 00:00:02] [%clk 00:11:13]} Nc6 {[%emt 00:00:02] [%clk 00:15:25]} 3.
Bb5 {[%emt 00:00:05] [%clk 00:11:19]} a6 {[%emt 00:00:02] [%clk 00:15:32]} 4.
Ba4 {[%emt 00:00:01] [%clk 00:11:28]} Nf6 {[%emt 00:00:02] [%clk 00:15:40]} 5.
O-O {[%emt 00:00:02] [%clk 00:11:35]} b5 {[%emt 00:00:12] [%clk 00:15:38]} 6.
Bb3 {[%emt 00:00:01] [%clk 00:11:44]} Bc5 {[%emt 00:00:02] [%clk 00:15:46]} 7.
a4 {[%emt 00:00:02] [%clk 00:11:52]} Rb8 {[%emt 00:00:02] [%clk 00:15:53]} 8.
axb5 {[%emt 00:00:02] [%clk 00:12:01]} axb5 {[%emt 00:00:02] [%clk 00:16:01]} 9.
Nxe5 {[%emt 00:00:02] [%clk 00:12:09]} Nxe5 {[%emt 00:00:05] [%clk 00:16:06]}
10. d4 {[%emt 00:00:01] [%clk 00:12:18]} Bxd4 {[%emt 00:00:10] [%clk 00:16:06]}
11. Qxd4 {[%emt 00:00:02] [%clk 00:12:26]} d6 {[%emt 00:00:05] [%clk 00:16:11]}
12. f4 {[%emt 00:00:02] [%clk 00:12:34]} Nc6 {[%emt 00:00:10] [%clk 00:16:10]}
13. Qc3 {[%emt 00:00:03] [%clk 00:12:41]} Ne7 {[%emt 00:00:40] [%clk 00:15:40]}
14. Ra7 {[%emt 00:01:06] [%clk 00:11:46]} Rb7 {[%emt 00:01:08] [%clk 00:14:42]}
15. Ra8 {[%emt 00:01:08] [%clk 00:10:48]} O-O {[%emt 00:00:38] [%clk 00:14:13]}
16. e5 {[%emt 00:00:18] [%clk 00:10:40]} Ne4 {[%emt 00:00:22] [%clk 00:14:01]}
17. Qf3 {[%emt 00:00:59] [%clk 00:09:51]} Nc5 {[%emt 00:00:27] [%clk 00:13:44]}
18. Nc3 {[%emt 00:00:09] [%clk 00:09:53]} Nxb3 {[%emt 00:00:16] [%clk 00:13:38]}
19. cxb3 {[%emt 00:00:02] [%clk 00:10:01]} d5 {[%emt 00:00:31] [%clk 00:13:16]}
20. Rd1 {[%emt 00:00:17] [%clk 00:09:54]} c6 {[%emt 00:00:28] [%clk 00:12:59]}
21. Be3 {[%emt 00:00:29] [%clk 00:09:34]} Qd7 {[%emt 00:00:37] [%clk 00:12:32]}
22. Bc5 {[%emt 00:00:22] [%clk 00:09:22]} Qg4 {[%emt 00:00:17] [%clk 00:12:25]}
23. Qxg4 {[%emt 00:01:13] [%clk 00:08:20]} Bxg4 {[%emt 00:00:02] [%clk
00:12:33]} 24. Rxf8+ {[%emt 00:00:25] [%clk 00:08:05]} Kxf8 {[%emt 00:00:02]
[%clk 00:12:41]} 25. Ra1 {[%emt 00:00:01] [%clk 00:08:14]} Ke8 {[%emt 00:00:23]
[%clk 00:12:28]} 26. h3 {[%emt 00:00:15] [%clk 00:08:09]} Be6 {[%emt 00:00:10]
[%clk 00:12:28]} 27. Ne2 {[%emt 00:00:13] [%clk 00:08:07]} Kd7 {[%emt 00:00:06]
[%clk 00:12:32]} 28. b4 {[%emt 00:00:23] [%clk 00:07:53]} h5 {[%emt 00:00:19]
[%clk 00:12:22]} 29. Kf2 {[%emt 00:00:11] [%clk 00:07:53]} g6 {[%emt 00:00:03]
[%clk 00:12:29]} 30. Nd4 {[%emt 00:00:23] [%clk 00:07:40]} Nf5 {[%emt 00:00:05]
[%clk 00:12:34]} 31. Nxe6 {[%emt 00:02:07] [%clk 00:05:44]} Kxe6 {[%emt
00:00:13] [%clk 00:12:30]} 32. g4 {[%emt 00:00:03] [%clk 00:05:50]} hxg4 {[%emt
00:00:45] [%clk 00:11:55]} 33. hxg4 {[%emt 00:00:02] [%clk 00:05:59]} Ng7 {[%emt
00:00:13] [%clk 00:11:52]} 34. Ra8 {[%emt 00:00:34] [%clk 00:05:35]} f5 {[%emt
00:01:01] [%clk 00:11:01]} 35. exf6 {[%emt 00:00:04] [%clk 00:05:42]} Kxf6
{[%emt 00:00:01] [%clk 00:11:09]} 36. Rc8 {[%emt 00:01:06] [%clk 00:04:47]} Ne6
{[%emt 00:00:14] [%clk 00:11:05]} 37. Rxc6 {[%emt 00:00:02] [%clk 00:04:55]} Kf7
{[%emt 00:00:11] [%clk 00:11:03]} 38. Ke3 {[%emt 00:00:56] [%clk 00:04:08]} Rd7
{[%emt 00:00:12] [%clk 00:11:01]} 39. Rd6 {[%emt 00:01:10] [%clk 00:03:09]} Rxd6
{[%emt 00:03:02] [%clk 00:08:09]} 40. Bxd6 {[%emt 00:00:01] [%clk 00:03:18]} Nd8
{[%emt 00:00:28] [%clk 00:07:51]} 41. f5 {[%emt 00:01:47] [%clk 00:01:41]} gxf5
{[%emt 00:00:07] [%clk 00:07:54]} 42. gxf5 {[%emt 00:00:01] [%clk 00:01:50]} Nc6
{[%emt 00:00:05] [%clk 00:07:59]} 43. Bc5 {[%emt 00:00:06] [%clk 00:01:54]} Kf6
{[%emt 00:00:12] [%clk 00:07:57]} 44. Kf4 {[%emt 00:00:02] [%clk 00:02:03]} d4
{[%emt 00:00:02] [%clk 00:08:05]} 45. Ke4 {[%emt 00:00:01] [%clk 00:02:12]} d3
{[%emt 00:00:01] [%clk 00:08:13]} 46. Kxd3 {[%emt 00:00:02] [%clk 00:02:20]}
Kxf5 {[%emt 00:00:01] [%clk 00:08:22]} 1/2-1/2

[Site "Europe Echecs"]

[Event "Championnat d'Europe Rapide"]
[Date "2024.12.08"]
[White "Aizenberg, Benny"]
[Black "Avramidou, Anastasia"]
[WhiteElo "2425"]
[BlackElo "2298"]
[Round "7.40"]
[Result "1/2-1/2"]
[TimeControl "900+10"]

1. e4 {[%clk 00:15:17]} c6 {[%emt 00:01:06] [%clk 00:14:15]} 2. Nf3 {[%emt
00:00:03] [%clk 00:15:24]} d5 {[%emt 00:00:02] [%clk 00:14:23]} 3. Nc3 {[%emt
00:00:01] [%clk 00:15:33]} dxe4 {[%emt 00:00:17] [%clk 00:14:16]} 4. Nxe4 {[%emt
00:00:02] [%clk 00:15:41]} Nd7 {[%emt 00:00:02] [%clk 00:14:24]} 5. Bc4 {[%emt
00:00:30] [%clk 00:15:21]} Ngf6 {[%emt 00:00:29] [%clk 00:14:04]} 6. Qe2 {[%emt
00:00:34] [%clk 00:14:57]} Nxe4 {[%emt 00:00:30] [%clk 00:13:44]} 7. Qxe4 {[%emt
00:00:03] [%clk 00:15:04]} Nf6 {[%emt 00:00:03] [%clk 00:13:51]} 8. Ne5 {[%emt
00:00:03] [%clk 00:15:11]} e6 {[%emt 00:00:02] [%clk 00:13:59]} 9. Qe2 {[%emt
00:00:02] [%clk 00:15:19]} Bd6 {[%emt 00:00:48] [%clk 00:13:21]} 10. d4 {[%emt
00:00:25] [%clk 00:15:04]} Qc7 {[%emt 00:00:03] [%clk 00:13:29]} 11. O-O {[%emt
00:00:16] [%clk 00:14:58]} b5 {[%emt 00:01:40] [%clk 00:11:59]} 12. Bd3 {[%emt
00:00:31] [%clk 00:14:37]} a6 {[%emt 00:00:06] [%clk 00:12:04]} 13. a4 {[%emt
00:01:53] [%clk 00:12:53]} Bb7 {[%emt 00:00:14] [%clk 00:12:00]} 14. Bg5 {[%emt
00:01:48] [%clk 00:11:15]} h6 {[%emt 00:05:19] [%clk 00:06:51]} 15. Bh4 {[%emt
00:00:12] [%clk 00:11:13]} Nd5 {[%emt 00:00:13] [%clk 00:06:47]} 16. Bg3 {[%emt
00:00:55] [%clk 00:10:29]} O-O {[%emt 00:01:32] [%clk 00:05:25]} 17. Rfe1 {[%emt
00:00:23] [%clk 00:10:16]} Rfe8 {[%emt 00:01:33] [%clk 00:04:02]} 18. c3 {[%emt
00:00:25] [%clk 00:10:01]} f6 {[%emt 00:02:45]} 19. Ng6 {[%clk 00:09:11]} Bxg3
{[%emt 00:01:27] [%clk 00:01:09]} 20. hxg3 {[%emt 00:00:02] [%clk 00:09:19]} Qd6
{[%emt 00:00:42] [%clk 00:00:37]} 21. Nh4 {[%emt 00:00:58] [%clk 00:08:30]} f5
{[%emt 00:00:24] [%clk 00:00:23]} 22. Ng6 {[%emt 00:00:32] [%clk 00:08:07]} bxa4
{[%emt 00:00:03] [%clk 00:00:31]} 23. Rxa4 {[%emt 00:00:08] [%clk 00:08:09]} c5
{[%emt 00:00:11] [%clk 00:00:30]} 24. Ne5 {[%emt 00:00:45] [%clk 00:07:33]} Nb6
{[%emt 00:00:18] [%clk 00:00:23]} 25. Ra5 {[%emt 00:01:28] [%clk 00:06:15]} cxd4
{[%emt 00:00:06] [%clk 00:00:27]} 26. c4 {[%emt 00:00:05] [%clk 00:06:21]} Nd7
{[%emt 00:00:16] [%clk 00:00:20]} 27. Nxd7 {[%emt 00:00:39] [%clk 00:05:52]}
Qxd7 {[%emt 00:00:01] [%clk 00:00:29]} 28. Re5 {[%emt 00:00:02] [%clk 00:06:00]}
Qc6 {[%emt 00:00:23] [%clk 00:00:16]} 29. f3 {[%emt 00:00:03] [%clk 00:06:07]}
g6 {[%emt 00:00:10] [%clk 00:00:15]} 30. Rxe6 {[%emt 00:00:24] [%clk 00:05:53]}
Rxe6 {[%emt 00:00:06] [%clk 00:00:20]} 31. Qxe6+ {[%emt 00:00:02] [%clk
00:06:01]} Qxe6 {[%emt 00:00:10] [%clk 00:00:19]} 32. Rxe6 {[%emt 00:00:02]
[%clk 00:06:09]} Kf7 {[%emt 00:00:08] [%clk 00:00:22]} 33. Rd6 {[%emt 00:00:48]
[%clk 00:05:31]} Bc8 {[%emt 00:00:01] [%clk 00:00:31]} 34. Rxd4 {[%emt 00:00:31]
[%clk 00:05:09]} Ke7 {[%emt 00:00:15] [%clk 00:00:26]} 35. c5 {[%emt 00:00:41]
[%clk 00:04:38]} a5 {[%emt 00:00:05] [%clk 00:00:31]} 36. Rd6 {[%emt 00:00:51]
[%clk 00:03:57]} Be6 {[%emt 00:00:13] [%clk 00:00:28]} 37. Bb5 {[%emt 00:00:41]
[%clk 00:03:26]} Rc8 {[%emt 00:00:14] [%clk 00:00:22]} 38. Rc6 {[%emt 00:00:04]
[%clk 00:03:34]} Rxc6 {[%emt 00:00:17] [%clk 00:00:15]} 39. Bxc6 {[%emt
00:00:02] [%clk 00:03:42]} g5 {[%emt 00:00:12] [%clk 00:00:14]} 40. f4 {[%emt
00:00:12] [%clk 00:03:40]} Bc4 {[%emt 00:00:06] [%clk 00:00:17]} 41. Kf2 {[%emt
00:00:05] [%clk 00:03:45]} Ke6 {[%emt 00:00:01] [%clk 00:00:27]} 42. Ke3 {[%emt
00:00:03] [%clk 00:03:51]} Bd5 {[%emt 00:00:05] [%clk 00:00:32]} 43. Be8 {[%emt
00:00:47] [%clk 00:03:14]} Bxg2 {[%emt 00:00:02] [%clk 00:00:41]} 44. Kd4 {[%emt
00:00:01] [%clk 00:03:23]} Bf3 {[%emt 00:00:22] [%clk 00:00:29]} 45. Bb5 {[%emt
00:03:01] [%clk 00:00:31]} gxf4 {[%emt 00:00:11] [%clk 00:00:28]} 46. gxf4
{[%emt 00:00:01] [%clk 00:00:40]} h5 {[%clk 00:00:37]} 47. Bf1 {[%emt 00:00:18]
[%clk 00:00:32]} h4 {[%emt 00:00:23] [%clk 00:00:24]} 48. Kc4 {[%emt 00:00:06]
[%clk 00:00:37]} Bc6 {[%emt 00:00:02] [%clk 00:00:32]} 49. Bh3 {[%emt 00:00:01]
[%clk 00:00:45]} Kf6 {[%emt 00:00:23] [%clk 00:00:20]} 50. Kd4 {[%emt 00:00:17]
[%clk 00:00:37]} Ke6 {[%emt 00:00:01] [%clk 00:00:29]} 51. Kc4 {[%clk 00:00:46]}
Kf6 {[%emt 00:00:01] [%clk 00:00:38]} 52. b4 {[%emt 00:00:30] [%clk 00:00:27]}
axb4 {[%emt 00:00:02] [%clk 00:00:47]} 53. Kxb4 {[%clk 00:00:35]} Ke6 {[%emt
00:00:23] [%clk 00:00:34]} 54. Ka5 {[%emt 00:00:05] [%clk 00:00:41]} Be4 {[%emt
00:00:07] [%clk 00:00:37]} 55. Kb6 {[%emt 00:00:01] [%clk 00:00:49]} Kd7 {[%clk
00:00:46]} 56. Bf1 {[%emt 00:00:04] [%clk 00:00:55]} Bc6 {[%emt 00:00:43] [%clk
00:00:14]} 57. Bd3 {[%emt 00:00:15] [%clk 00:00:49]} Be4 {[%emt 00:00:01] [%clk
00:00:23]} 58. Bb5+ {[%emt 00:00:08] [%clk 00:00:51]} Ke7 {[%emt 00:00:14] [%clk
00:00:20]} 59. c6 {[%emt 00:00:14] [%clk 00:00:47]} h3 {[%clk 00:00:29]} 60. c7
{[%emt 00:00:14] [%clk 00:00:44]} h2 {[%clk 00:00:38]} 61. c8=Q {[%emt 00:00:02]
[%clk 00:00:51]} h1=Q {[%emt 00:00:02] [%clk 00:00:45]} 62. Qe8+ {[%emt
00:00:15] [%clk 00:00:46]} Kf6 {[%emt 00:00:12] [%clk 00:00:43]} 63. Qf8 {[%emt
00:00:15] [%clk 00:00:41]} Ke6 {[%emt 00:00:17] [%clk 00:00:36]} 64. Bc4 {[%emt
00:00:07] [%clk 00:00:44]} Bd5 {[%clk 00:00:46]} 65. Qg8 {[%emt 00:00:22] [%clk
00:00:31]} Kd6 {[%emt 00:00:03] [%clk 00:00:52]} 66. Qb8 {[%emt 00:00:15] [%clk
00:00:27]} Kd7 {[%emt 00:00:12] [%clk 00:00:51]} 67. Qc7+ {[%emt 00:00:02] [%clk
00:00:34]} Ke8 {[%emt 00:00:12] [%clk 00:00:49]} 68. Qe5+ {[%emt 00:00:02] [%clk
00:00:43]} Kf8 {[%clk 00:00:59]} 69. Qxf5+ {[%emt 00:00:12] [%clk 00:00:41]} Ke7
{[%emt 00:00:06] [%clk 00:01:03]} 70. Qe5+ {[%emt 00:00:14] [%clk 00:00:37]} Kf8
{[%clk 00:01:12]} 71. Bxd5 {[%emt 00:00:14] [%clk 00:00:33]} Qb1+ {[%emt
00:00:18] [%clk 00:01:04]} 72. Kc7 {[%emt 00:00:05] [%clk 00:00:37]} Qb8+ {[%emt
00:00:42] [%clk 00:00:31]} 73. Kc6 {[%emt 00:00:20] [%clk 00:00:28]} Qb5+ {[%emt
00:00:21] [%clk 00:00:20]} 74. Kc7 {[%emt 00:00:22] [%clk 00:00:16]} Qb8+ {[%emt
00:00:13] [%clk 00:00:17]} 75. Kd7 {[%emt 00:00:02] [%clk 00:00:23]} Qc8+ {[%emt
00:00:10] [%clk 00:00:17]} 76. Kd6 {[%clk 00:00:32]} Qc7+ {[%emt 00:00:06] [%clk
00:00:20]} 77. Ke6 {[%emt 00:00:02] [%clk 00:00:41]} Qf7+ {[%emt 00:00:02] [%clk
00:00:28]} 78. Kd6 {[%emt 00:00:05] [%clk 00:00:46]} Qc7+ {[%clk 00:00:38]} 79.
Kxc7 {[%emt 00:00:18] [%clk 00:00:38]} 1/2-1/2

[Site "Europe Echecs"]

[Event "Championnat d'Europe Rapide"]
[Date "2024.12.08"]
[White "Promyshlyanskiy, Vitaliy"]
[Black "Costachi, Mihnea"]
[WhiteElo "2279"]
[BlackElo "2464"]
[Round "7.41"]
[Result "0-1"]
[TimeControl "900+10"]

1. e4 {[%clk 00:15:19]} e5 {[%emt 00:00:03] [%clk 00:15:18]} 2. Nf3 {[%emt
00:00:03] [%clk 00:15:27]} Nc6 {[%clk 00:15:26]} 3. Bb5 {[%emt 00:00:02] [%clk
00:15:35]} a6 {[%emt 00:00:02] [%clk 00:15:35]} 4. Ba4 {[%emt 00:00:01] [%clk
00:15:44]} d6 {[%emt 00:00:03] [%clk 00:15:43]} 5. Bxc6+ {[%emt 00:00:21] [%clk
00:15:32]} bxc6 {[%emt 00:00:02] [%clk 00:15:51]} 6. d4 {[%emt 00:00:02] [%clk
00:15:40]} exd4 {[%emt 00:00:02] [%clk 00:15:59]} 7. Qxd4 {[%emt 00:00:02] [%clk
00:15:47]} Nf6 {[%emt 00:00:52] [%clk 00:15:17]} 8. O-O {[%emt 00:00:23] [%clk
00:15:34]} c5 {[%emt 00:00:23] [%clk 00:15:04]} 9. Qd3 {[%emt 00:00:06] [%clk
00:15:39]} Be7 {[%emt 00:00:04] [%clk 00:15:10]} 10. e5 {[%emt 00:00:32] [%clk
00:15:18]} dxe5 {[%emt 00:02:01] [%clk 00:13:19]} 11. Qxd8+ {[%emt 00:00:54]
[%clk 00:14:35]} Bxd8 {[%emt 00:00:01] [%clk 00:13:27]} 12. Nxe5 {[%emt
00:00:03] [%clk 00:14:41]} Be7 {[%emt 00:00:24] [%clk 00:13:14]} 13. Re1 {[%emt
00:01:01] [%clk 00:13:51]} Be6 {[%emt 00:00:08] [%clk 00:13:16]} 14. Nc3 {[%emt
00:00:13] [%clk 00:13:48]} O-O {[%emt 00:01:52] [%clk 00:11:33]} 15. Bf4 {[%emt
00:00:04] [%clk 00:13:55]} Bd6 {[%emt 00:00:11] [%clk 00:11:32]} 16. Nd3 {[%emt
00:00:19] [%clk 00:13:45]} Bf5 {[%emt 00:01:26] [%clk 00:10:16]} 17. Be5 {[%emt
00:02:35] [%clk 00:11:21]} c4 {[%emt 00:00:48] [%clk 00:09:38]} 18. Bxd6 {[%emt
00:02:08] [%clk 00:09:23]} cxd6 {[%emt 00:00:09] [%clk 00:09:38]} 19. Nf4 {[%emt
00:00:03] [%clk 00:09:30]} Bxc2 {[%emt 00:00:43] [%clk 00:09:05]} 20. Rac1
{[%emt 00:00:08] [%clk 00:09:32]} Bf5 {[%emt 00:03:52] [%clk 00:05:23]} 21. Red1
{[%emt 00:00:23] [%clk 00:09:19]} Rfb8 {[%emt 00:01:39] [%clk 00:03:54]} 22. Rd2
{[%emt 00:00:38] [%clk 00:08:51]} Rb7 {[%emt 00:01:47] [%clk 00:02:17]} 23. Rcd1
{[%emt 00:02:58] [%clk 00:06:04]} Kf8 {[%emt 00:00:18] [%clk 00:02:10]} 24. f3
{[%emt 00:01:04] [%clk 00:05:09]} Rab8 {[%emt 00:00:20] [%clk 00:02:00]} 25. g4
{[%emt 00:00:08] [%clk 00:05:11]} Bg6 {[%emt 00:00:32] [%clk 00:01:38]} 26. Rxd6
{[%emt 00:00:34] [%clk 00:04:47]} Rxb2 {[%emt 00:00:02] [%clk 00:01:47]} 27.
Rxa6 {[%emt 00:02:45]} Rc2 {[%emt 00:00:21] [%clk 00:01:35]} 28. Ncd5 {[%emt
00:00:07] [%clk 00:02:17]} Nxd5 {[%emt 00:00:09] [%clk 00:01:35]} 29. Nxd5
{[%emt 00:00:02] [%clk 00:02:25]} Bd3 {[%emt 00:00:38] [%clk 00:01:07]} 30. Ra7
{[%emt 00:00:32] [%clk 00:02:03]} Be2 {[%emt 00:00:12] [%clk 00:01:05]} 31. Re1
{[%emt 00:00:46] [%clk 00:01:27]} Bxf3 {[%emt 00:00:01] [%clk 00:01:14]} 32. Ne3
{[%emt 00:00:39] [%clk 00:00:59]} Rc3 {[%emt 00:00:39] [%clk 00:00:44]} 33. Rc7
{[%emt 00:00:30] [%clk 00:00:40]} g6 {[%emt 00:00:35] [%clk 00:00:19]} 34. Kf2
{[%emt 00:00:05] [%clk 00:00:45]} Ba8 {[%emt 00:00:16] [%clk 00:00:13]} 35. Re2
{[%emt 00:00:05] [%clk 00:00:49]} Re8 {[%emt 00:00:10] [%clk 00:00:14]} 36. Nxc4
{[%emt 00:00:39] [%clk 00:00:19]} Rxe2+ {[%emt 00:00:04] [%clk 00:00:20]} 37.
Kxe2 {[%clk 00:00:28]} Bd5 {[%emt 00:00:11] [%clk 00:00:19]} 38. Rc8+ {[%emt
00:00:02] [%clk 00:00:36]} Kg7 {[%emt 00:00:14] [%clk 00:00:15]} 39. Nb6 {[%emt
00:00:07] [%clk 00:00:39]} Bf3+ {[%emt 00:00:09] [%clk 00:00:16]} 40. Kf2 {[%emt
00:00:07] [%clk 00:00:42]} Ra3 {[%emt 00:00:01] [%clk 00:00:25]} 41. h3 {[%emt
00:00:30] [%clk 00:00:21]} Be4 {[%emt 00:00:04] [%clk 00:00:30]} 42. Rc1 {[%emt
00:00:20] [%clk 00:00:11]} Rxh3 {[%emt 00:00:15] [%clk 00:00:25]} 43. a4 {[%emt
00:00:05] [%clk 00:00:17]} Rf3+ {[%emt 00:00:10] [%clk 00:00:24]} 44. Ke2 {[%emt
00:00:03] [%clk 00:00:24]} Rg3 {[%emt 00:00:01] [%clk 00:00:33]} 45. a5 {[%emt
00:00:09] [%clk 00:00:25]} Ra3 {[%emt 00:00:04] [%clk 00:00:39]} 46. Nc4 {[%emt
00:00:17]} Bd3+ {[%emt 00:00:03] [%clk 00:00:44]} 47. Kd2 {[%emt 00:00:02] [%clk
00:00:27]} Bxc4 {[%emt 00:00:01] [%clk 00:00:53]} 48. Rxc4 {[%clk 00:00:36]}
Rxa5 {[%emt 00:00:01] [%clk 00:01:02]} 49. Ke3 {[%emt 00:00:01] [%clk 00:00:45]}
h5 {[%emt 00:00:05] [%clk 00:01:06]} 50. Kf3 {[%emt 00:00:13] [%clk 00:00:43]}
hxg4+ {[%emt 00:00:04] [%clk 00:01:12]} 51. Kxg4 {[%emt 00:00:01] [%clk
00:00:52]} Kh6 {[%emt 00:00:11] [%clk 00:01:11]} 52. Rb4 {[%emt 00:00:06] [%clk
00:00:56]} Rg5+ {[%emt 00:00:07] [%clk 00:01:14]} 53. Kh4 {[%emt 00:00:04] [%clk
00:01:03]} Rg1 {[%emt 00:00:07] [%clk 00:01:17]} 54. Rb6 {[%emt 00:00:06] [%clk
00:01:08]} f5 {[%emt 00:00:04] [%clk 00:01:22]} 55. Ra6 {[%emt 00:00:10] [%clk
00:01:08]} Rg4+ {[%emt 00:00:03] [%clk 00:01:29]} 56. Kh3 {[%emt 00:00:01] [%clk
00:01:17]} Kg5 {[%emt 00:00:02] [%clk 00:01:37]} 57. Ra5 {[%emt 00:00:03] [%clk
00:01:25]} Re4 {[%emt 00:00:03] [%clk 00:01:42]} 58. Kg3 {[%emt 00:00:03] [%clk
00:01:32]} Re3+ {[%emt 00:00:01] [%clk 00:01:51]} 59. Kf2 {[%clk 00:01:41]} Rb3
{[%emt 00:00:01] [%clk 00:02:00]} 60. Ra4 {[%emt 00:00:04] [%clk 00:01:47]} f4
{[%emt 00:00:06] [%clk 00:02:03]} 61. Ra6 {[%emt 00:00:05] [%clk 00:01:54]} Kf5
{[%emt 00:00:02] [%clk 00:02:11]} 62. Ra5+ {[%emt 00:00:10] [%clk 00:01:54]} Kg4
{[%emt 00:00:01] [%clk 00:02:19]} 63. Ra4 {[%emt 00:00:15] [%clk 00:01:50]} Rb2+
{[%emt 00:00:02] [%clk 00:02:27]} 64. Kg1 {[%emt 00:00:01] [%clk 00:01:58]} Kg3
{[%emt 00:00:02] [%clk 00:02:34]} 65. Ra1 {[%emt 00:00:05] [%clk 00:02:04]} f3
{[%emt 00:00:02] [%clk 00:02:42]} 66. Rf1 {[%emt 00:00:09] [%clk 00:02:05]} Rg2+
{[%emt 00:00:02] [%clk 00:02:50]} 67. Kh1 {[%emt 00:00:01] [%clk 00:02:14]} Rh2+
{[%emt 00:00:02] [%clk 00:02:59]} 68. Kg1 {[%clk 00:02:22]} f2+ {[%emt 00:00:01]
[%clk 00:03:07]} 0-1

[Site "Europe Echecs"]